bitfinex/quotes_SOLUSD_20241021
["timestamp","ask_amount","ask_price","bid_price","bid_amount"]
[1729469379813,15.95486047,169.04,168.98,1.8844376]
[1729469380011,15.95486047,169.04,168.99,1.8844376]
[1729469380218,15.95486047,169.04,169.0,1.8844376]
[1729469380633,15.95486047,169.04,169.01,1.8844376]
[1729469380819,15.95486047,169.04,169.02,1.8844376]
[1729469381134,15.95486047,169.04,169.03,1.8844376]
[1729469381431,15.95486047,169.04,168.94,3.11548414]
[1729469381642,15.95486047,169.04,168.95,1.88317778]
[1729469381930,15.95486047,169.04,168.96,1.88317778]
[1729469382125,15.95486047,169.04,168.97,1.88317778]
[1729469382327,15.0674,169.04,168.98,1.88317778]
[1729469382524,15.0674,169.04,168.99,1.88317778]
[1729469382735,15.0674,169.04,169.0,1.88317778]
[1729469382913,15.0674,169.04,169.01,1.88317778]
[1729469383117,15.0674,169.04,168.94,3.01548414]
[1729469383432,15.0674,169.04,168.95,1.88325964]
[1729469383615,15.0674,169.04,168.96,1.88253358]
[1729469383931,6.5693,169.08,168.97,1.88253358]
[1729469384131,6.5693,169.08,168.98,1.88253358]
[1729469384514,0.88750441,169.12,169.02,20.0]
[1729469384831,0.88750441,169.12,169.03,1.88253358]
[1729469386831,0.88750441,169.12,169.03,1.87937138]
[1729469387533,0.88750441,169.12,169.01,3.00737712]
[1729469387717,0.88750441,169.12,169.02,1.87894708]
[1729469387917,0.88750441,169.12,169.03,1.87894708]
[1729469388117,0.88750441,169.12,168.97,3.00737712]
[1729469388333,0.88750441,169.12,168.98,1.8787046]
[1729469388520,0.88750441,169.12,168.99,1.8787046]
[1729469388721,0.88750441,169.12,169.0,1.8787046]
[1729469388918,23.776884,169.1,169.01,1.8787046]
[1729469389133,23.776884,169.08,168.9,3.00737712]
[1729469389435,27.8671,169.11,168.91,1.87996396]
[1729469389630,23.776884,169.1,168.92,1.87996396]
[1729469390134,23.776884,169.1,168.93,1.87996396]
[1729469390340,29.690584,169.1,168.92,1.87996396]
[1729469390640,5.9143,169.08,168.93,1.87996396]
[1729469390820,5.9143,169.08,168.94,1.87996396]
[1729469391028,0.88748875,169.08,168.95,1.87996396]
[1729469392040,21.9536,169.11,168.95,1.87996396]
[1729469392332,21.9536,169.11,168.96,1.87996396]
[1729469392536,21.9536,169.11,168.97,1.87996396]
[1729469392726,21.9536,169.11,168.98,1.87996396]
[1729469392925,21.9536,169.11,168.99,1.87996396]
[1729469393131,21.9536,169.11,169.0,1.87996396]
[1729469393321,21.9536,169.11,169.01,1.87996396]
[1729469393523,21.9536,169.11,168.96,3.00737712]
[1729469393857,21.9536,169.11,168.97,1.87733692]
[1729469394044,21.9536,169.11,168.98,1.87722082]
[1729469394338,21.9536,169.11,168.99,1.87722082]
[1729469394548,22.0536,169.11,168.99,1.87722082]
[1729469394720,5.9136,169.1,168.89,9.17990512]
[1729469395049,27.8669,169.11,168.91,0.1]
[1729469395341,5.9148,169.07,168.91,8.56645539]
[1729469395543,5.9148,169.07,168.92,1.87778144]
[1729469395923,0.1,169.08,168.92,1.87778144]
[1729469396120,23.776884,169.07,168.92,1.87778144]
[1729469396435,29.691584,169.07,168.92,1.87778144]
[1729469396831,5.914,169.09,168.92,1.87778144]
[1729469397031,23.776884,169.08,168.92,8.56645539]
[1729469397238,23.776884,169.08,168.93,1.87778144]
[1729469397443,23.776884,169.08,168.93,21.87778144]
[1729469397638,23.776884,169.08,168.94,1.87778144]
[1729469399422,23.776884,169.09,168.94,1.87778144]
[1729469399635,27.8669,169.11,168.94,1.87778144]
[1729469399946,23.776884,169.1,168.94,1.87778144]
[1729469400237,21.9536,169.11,168.94,1.87778144]
[1729469400737,21.9536,169.11,168.96,20.0]
[1729469400944,21.9536,169.11,168.97,1.87778144]
[1729469401129,5.9151,169.06,168.97,4.8817173]
[1729469401322,0.88750819,169.06,168.98,1.87778144]
[1729469401647,0.88750819,169.06,168.99,1.87680414]
[1729469401846,0.88750819,169.06,168.93,6.68867395]
[1729469401847,0.88750819,169.06,169.0,1.87680414]
[1729469402023,0.88750819,169.06,168.93,6.68867395]
[1729469402217,0.88750819,169.06,168.94,1.87723948]
[1729469402541,0.88750819,169.06,168.94,21.87723948]
[1729469402737,0.88750819,169.06,168.95,1.87723948]
[1729469403829,0.88750819,169.06,168.96,1.87723948]
[1729469404028,0.88750819,169.06,168.97,1.87723948]
[1729469404219,0.88750819,169.06,168.9,6.68867395]
[1729469404220,0.88750819,169.06,168.98,1.87723948]
[1729469404428,0.88750819,169.06,168.99,1.87723948]
[1729469404730,0.88750819,169.06,169.0,1.87723948]
[1729469404931,0.88750819,169.06,169.01,1.87723948]
[1729469405126,0.88750819,169.06,168.93,3.00326934]
[1729469405332,0.88750819,169.06,168.94,1.87895635]
[1729469405533,0.88750819,169.06,168.95,1.87895635]
[1729469405738,0.88750819,169.06,168.96,1.87895635]
[1729469405938,0.88750819,169.06,168.97,1.87895635]
[1729469406149,0.88750819,169.06,168.98,1.87895635]
[1729469406447,0.88750819,169.06,168.99,1.87895635]
[1729469406641,0.88750819,169.06,169.0,1.87895635]
[1729469406849,0.88750819,169.06,169.01,1.87895635]
[1729469407046,0.88750819,169.06,168.93,3.00326934]
[1729469407250,0.88750819,169.06,168.94,1.8804556]
[1729469407451,0.88750819,169.06,168.95,1.8804556]
[1729469407653,0.88750819,169.06,168.96,1.8804556]
[1729469407945,0.88750819,169.06,168.97,1.8804556]
[1729469408250,0.88750819,169.06,168.93,3.00326934]
[1729469408251,0.88750819,169.06,168.98,1.8804556]
[1729469408453,0.88750819,169.06,168.99,1.8804556]
[1729469408647,0.88750819,169.06,168.93,3.00326934]
[1729469408648,0.88750819,169.06,169.0,1.8804556]
[1729469408873,0.88750819,169.06,169.01,1.8804556]
[1729469409052,0.88750819,169.06,169.02,1.8804556]
[1729469409354,0.88750819,169.06,168.95,3.00326934]
[1729469409554,0.88750819,169.06,168.96,21.88526712]
[1729469409731,21.9536,169.11,168.97,1.88526712]
[1729469409933,21.9536,169.11,168.98,27.15317113]
[1729469410239,21.9536,169.11,168.99,24.88853646]
[1729469410449,21.9536,169.11,169.0,24.88853646]
[1729469410634,21.9536,169.11,169.01,24.88853646]
[1729469410834,21.9536,169.11,169.02,4.88853646]
[1729469411047,27.8669,169.11,168.94,0.1]
[1729469411357,21.9536,169.11,168.95,1.88689547]
[1729469411550,21.9536,169.11,168.96,1.88689547]
[1729469411728,21.9536,169.11,168.97,21.88689547]
[1729469411925,21.9536,169.11,168.99,20.0]
[1729469412151,21.9536,169.11,169.0,1.88689547]
[1729469414029,21.9536,169.11,168.99,20.0]
[1729469414241,21.9536,169.11,169.0,4.89093929]
[1729469414450,21.9536,169.11,169.01,1.88098183]
[1729469414629,21.9536,169.11,169.0,1.88098183]
[1729469415045,21.9536,169.11,169.01,1.88098183]
[1729469415241,21.9536,169.11,169.02,1.88098183]
[1729469415441,21.9536,169.11,169.03,1.88098183]
[1729469415634,21.9536,169.11,168.96,3.00995746]
[1729469415828,21.9536,169.11,168.97,8.5703942]
[1729469416040,21.9536,169.11,168.98,21.88172025]
[1729469416234,21.9536,169.11,168.99,1.88172025]
[1729469416448,21.9536,169.11,169.0,1.88172025]
[1729469416856,21.9536,169.11,169.01,1.88172025]
[1729469417030,27.867,169.11,169.02,1.88172025]
[1729469417233,27.867,169.11,169.03,1.88172025]
[1729469417547,27.867,169.11,169.04,1.88172025]
[1729469417747,27.867,169.11,168.99,3.00995746]
[1729469417935,21.9536,169.11,169.0,1.8838529]
[1729469418432,21.9536,169.11,169.01,1.8838529]
[1729469418639,21.9536,169.11,169.02,1.8838529]
[1729469418849,21.9536,169.11,169.03,1.8838529]
[1729469419041,21.9536,169.11,169.04,1.8838529]
[1729469419253,21.9536,169.11,169.05,1.8838529]
[1729469419553,21.9536,169.11,169.06,1.8838529]
[1729469419762,21.9536,169.11,169.07,1.8838529]
[1729469420063,21.9536,169.11,168.98,26.68867395]
[1729469420064,21.9536,169.11,169.02,20.0]
[1729469420251,21.9536,169.11,169.03,1.88649974]
[1729469420461,21.9536,169.11,169.04,1.88649974]
[1729469420760,21.9536,169.11,169.05,1.88649974]
[1729469421062,21.9536,169.11,169.06,1.88691473]
[1729469421364,21.9536,169.11,169.02,20.0]
[1729469421365,21.9536,169.11,169.07,1.88691473]
[1729469421542,0.88750441,169.12,169.08,1.88691473]
[1729469421738,0.88750441,169.12,169.09,1.88691473]
[1729469421966,0.88750441,169.12,169.1,1.88691473]
[1729469422258,0.88750441,169.12,169.11,1.89055959]
[1729469424540,0.88750441,169.12,169.11,1.89157714]
[1729469424940,6.17696142,169.14,169.11,1.89157714]
[1729469425155,6.17696142,169.14,169.12,1.89157714]
[1729469425362,6.17696142,169.14,169.13,1.89157714]
[1729469425755,6.17696142,169.14,169.1,4.91848927]
[1729469426064,6.17696142,169.14,169.11,1.89157714]
[1729469426363,6.17696142,169.14,169.12,1.89157714]
[1729469426660,7.06393183,169.14,169.1,3.02691213]
[1729469426861,7.06393183,169.14,169.11,1.89122071]
[1729469427040,7.06393183,169.14,169.12,1.89122071]
[1729469427365,7.06393183,169.14,169.07,20.0]
[1729469427366,7.06393183,169.14,169.13,1.89122071]
[1729469428150,7.06393183,169.14,169.13,1.89112247]
[1729469428857,7.06393183,169.14,169.1,4.91730704]
[1729469429065,7.06393183,169.14,169.11,1.89112247]
[1729469429241,7.06393183,169.14,169.12,1.89112247]
[1729469429445,7.06393183,169.14,169.13,1.89112247]
[1729469430263,7.06393183,169.14,169.08,3.02618457]
[1729469430567,7.06393183,169.14,169.09,4.91917532]
[1729469430743,7.06393183,169.14,169.1,4.91917532]
[1729469430941,7.06393183,169.14,169.11,1.89299075]
[1729469431145,7.06393183,169.14,169.12,1.89299075]
[1729469431395,7.06393183,169.14,169.13,1.89299075]
[1729469431867,7.06393183,169.14,169.07,3.02424351]
[1729469432047,7.06393183,169.14,169.08,4.91418118]
[1729469432366,7.06393183,169.14,169.09,4.91418118]
[1729469432566,7.06393183,169.14,169.1,4.91418118]
[1729469432770,7.06393183,169.14,169.11,4.91418118]
[1729469432971,7.06393183,169.14,169.12,4.91418118]
[1729469433174,7.06393183,169.14,169.13,1.88993767]
[1729469434248,7.06393183,169.14,169.13,4.91418118]
[1729469434457,7.06393183,169.14,169.13,1.88993767]
[1729469435465,7.06393183,169.14,169.13,1.89134214]
[1729469435678,7.06393183,169.14,169.13,4.91787952]
[1729469435861,7.06393183,169.14,169.13,1.89134214]
[1729469437068,7.06393183,169.14,169.13,4.91787952]
[1729469437258,7.06393183,169.14,169.13,1.89134214]
[1729469438353,7.06393183,169.14,169.13,4.91787952]
[1729469438646,7.06393183,169.14,169.13,1.89134214]
[1729469439262,7.06393183,169.14,169.13,1.89122279]
[1729469442457,7.06393183,169.14,169.13,4.91664671]
[1729469442662,7.06393183,169.14,169.07,5.77093366]
[1729469442870,7.06393183,169.14,169.08,4.91478404]
[1729469443058,7.06393183,169.14,169.09,1.89015165]
[1729469443258,7.06393183,169.14,169.1,4.91478404]
[1729469443457,7.06393183,169.14,169.11,4.91478404]
[1729469443658,7.06393183,169.14,169.12,4.91478404]
[1729469443955,7.06393183,169.14,169.13,4.91450469]
[1729469444157,7.06393183,169.14,169.13,1.89015165]
[1729469445368,7.06393183,169.14,169.08,3.02530631]
[1729469445679,22.2814,169.07,169.01,5.76858788]
[1729469445851,22.2814,169.07,169.0,5.76858788]
[1729469445852,28.1964,169.07,169.0,5.76858788]
[1729469446684,28.1964,169.07,168.99,5.77771237]
[1729469447055,5.915,169.06,168.99,5.77771237]
[1729469447259,28.1961,169.07,168.99,5.77771237]
[1729469447664,43.776884,169.06,168.99,5.77771237]
[1729469447868,5.9157,169.05,168.97,5.77771237]
[1729469448494,28.1964,169.07,168.97,5.77771237]
[1729469448783,5.915,169.06,168.97,5.77771237]
[1729469449355,0.2,169.05,168.96,5.77771237]
[1729469449555,5.9172,169.0,168.94,5.77771237]
[1729469449886,21.3436,168.97,168.94,5.77771237]
[1729469450057,21.3436,168.97,168.92,5.77771237]
[1729469450252,21.3436,168.97,168.83,6.18049132]
[1729469450253,5.9185,168.96,168.9,5.77771237]
[1729469450856,5.9185,168.96,168.89,5.77771237]
[1729469451160,22.23153797,168.97,168.88,5.77771237]
[1729469451575,22.23153797,168.97,168.83,6.18049132]
[1729469451576,22.23153797,168.97,168.89,5.77771237]
[1729469451759,22.23153797,168.97,168.9,5.77771237]
[1729469452165,22.23153797,168.97,168.89,5.77771237]
[1729469452366,22.23153797,168.97,168.9,5.77771237]
[1729469452573,22.23153797,168.97,168.91,5.77771237]
[1729469453077,22.7459,169.05,168.92,26.63329627]
[1729469453256,22.7459,169.05,168.93,5.77771237]
[1729469453459,22.7459,169.05,168.94,20.0]
[1729469453673,22.7459,169.05,168.95,5.77771237]
[1729469453905,22.7459,169.05,168.94,25.77771237]
[1729469454668,22.7459,169.05,168.95,5.77771237]
[1729469454876,22.7459,169.05,168.96,5.77771237]
[1729469455763,22.7459,169.05,168.98,5.77771237]
[1729469455966,22.7459,169.05,168.99,3.01292942]
[1729469456183,22.7459,169.05,168.98,5.77771237]
[1729469456184,22.7459,169.05,169.0,3.01292942]
[1729469456484,22.7459,169.05,169.01,3.01292942]
[1729469456695,22.7459,169.05,168.99,3.01292942]
[1729469456990,22.7459,169.05,169.0,3.01292942]
[1729469457283,22.7459,169.05,169.01,3.012903]
[1729469457497,22.7459,169.05,169.02,4.8957906]
[1729469457661,22.7459,169.05,169.03,1.8828876]
[1729469457862,22.7459,169.05,169.04,1.8828876]
[1729469459874,22.7459,169.05,169.01,4.8957906]
[1729469460098,22.7459,169.05,169.02,1.8828876]
[1729469460266,22.7459,169.05,169.03,1.8828876]
[1729469460466,22.7459,169.05,169.04,1.8828876]
[1729469460665,22.7459,169.05,169.04,1.88328625]
[1729469460864,22.7459,169.05,168.93,20.0]
[1729469460865,22.7459,169.05,169.02,1.88344613]
[1729469461060,22.7459,169.05,168.96,5.75963436]
[1729469461384,0.88739211,169.08,168.98,5.75963436]
[1729469461594,0.88739211,169.08,168.98,9.94830831]
[1729469461595,0.88739272,169.05,168.98,9.94830831]
[1729469461764,0.88739272,169.05,168.98,3.25963436]
[1729469462272,0.88739272,169.05,168.95,23.776884]
[1729469462474,0.88739272,169.05,168.95,29.36184357]
[1729469462663,0.88739272,169.05,168.93,19.99693465]
[1729469462979,0.88739272,169.05,168.92,24.9146]
[1729469463376,0.88739272,169.05,168.92,25.0146]
[1729469463687,0.88739272,169.05,168.94,20.0]
[1729469463879,0.88739272,169.05,168.96,20.0]
[1729469464083,0.88739272,169.05,168.93,5.58495957]
[1729469464383,0.88739272,169.05,168.92,4.9146]
[1729469465789,0.88739272,169.05,168.96,20.0]
[1729469466374,0.88739272,169.05,168.95,23.776884]
[1729469466585,0.88739272,169.05,168.94,20.0]
[1729469466885,0.88739211,169.08,168.98,20.0]
[1729469467077,0.88739211,169.08,168.99,5.58495957]
[1729469467273,0.88739211,169.08,169.0,20.0]
[1729469467989,0.88739211,169.08,169.0,25.58495957]
[1729469468573,6.17753949,169.13,169.0,20.0]
[1729469469666,6.17753949,169.13,169.02,20.0]
[1729469469667,7.06467065,169.13,169.02,20.0]
[1729469470281,7.06467065,169.13,169.0,20.0]
[1729469470472,7.06467065,169.13,169.01,6.68867395]
[1729469470672,7.06467065,169.13,169.0,20.0]
[1729469470673,7.06467065,169.13,169.02,20.0]
[1729469470992,7.06467065,169.13,169.03,3.01221197]
[1729469471179,7.06467065,169.13,169.04,3.01221197]
[1729469471380,7.06467065,169.13,169.01,3.01221197]
[1729469471693,7.06467065,169.13,169.02,3.01221197]
[1729469471875,7.06467065,169.13,169.03,3.01221197]
[1729469472078,7.06467065,169.13,169.0,25.75555032]
[1729469472079,7.06467065,169.13,169.04,3.01221197]
[1729469472278,7.06467065,169.13,169.05,3.01221197]
[1729469472476,7.06467065,169.13,169.04,3.01221197]
[1729469472682,7.06467065,169.13,169.05,3.01221197]
[1729469472880,7.06467065,169.13,169.06,1.87320273]
[1729469473201,7.06467065,169.13,169.07,1.87320273]
[1729469473373,7.06467065,169.13,169.08,1.87320273]
[1729469473573,7.06467065,169.13,169.04,3.01221197]
[1729469473574,7.06467065,169.13,169.09,1.87320273]
[1729469473792,7.06467065,169.13,169.1,1.87320273]
[1729469474088,12.97737065,169.13,169.05,3.01221197]
[1729469474285,12.97737065,169.13,169.06,1.87361735]
[1729469474589,12.97737065,169.13,169.07,1.87361735]
[1729469474794,12.97737065,169.13,169.08,1.87361735]
[1729469474983,12.97737065,169.13,169.09,1.87361735]
[1729469475176,12.97737065,169.13,169.04,3.01221197]
[1729469475489,12.97737065,169.13,169.05,1.87375248]
[1729469475693,7.06467065,169.13,169.06,1.87375248]
[1729469475891,7.06467065,169.13,169.07,1.87375248]
[1729469476082,7.06467065,169.13,169.08,1.87375248]
[1729469476284,7.06467065,169.13,169.01,5.75555032]
[1729469476285,7.06467065,169.13,169.09,1.87375248]
[1729469476480,7.06467065,169.13,169.04,3.01221197]
[1729469476686,29.690084,169.12,169.05,1.87411224]
[1729469476893,29.690084,169.12,169.01,5.75555032]
[1729469476894,29.690084,169.12,169.06,1.87411224]
[1729469477195,29.690084,169.12,169.07,1.87411224]
[1729469477398,29.690084,169.12,169.08,1.87411224]
[1729469477580,29.690084,169.12,169.03,3.01221197]
[1729469477781,29.690084,169.12,169.04,1.87454702]
[1729469477977,29.690084,169.12,169.05,1.87454702]
[1729469478302,29.690084,169.12,169.06,1.87454702]
[1729469478604,29.690084,169.12,169.07,1.87454702]
[1729469478799,29.690084,169.12,169.08,1.87454702]
[1729469478991,29.690084,169.12,169.03,2.99966658]
[1729469478992,5.9137,169.1,169.03,2.99966658]
[1729469479178,6.80114386,169.1,169.04,0.89969992]
[1729469479374,29.690984,169.09,169.0,2.99966658]
[1729469479686,29.690984,169.09,169.03,1.8]
[1729469479883,23.776884,169.09,168.99,2.99966658]
[1729469480083,29.691184,169.09,169.02,1.8]
[1729469480286,29.691184,169.09,169.03,1.8]
[1729469480499,29.691184,169.09,169.0,2.99966658]
[1729469480682,29.691184,169.09,169.0,1.8]
[1729469480878,29.691184,169.09,169.0,4.79966658]
[1729469481083,29.691184,169.09,168.99,4.79966658]
[1729469481294,29.691184,169.09,169.0,2.99966658]
[1729469481786,29.691184,169.09,169.01,1.8]
[1729469481990,29.691184,169.09,169.02,1.62]
[1729469482300,29.691184,169.09,169.03,1.458]
[1729469482497,29.691184,169.09,168.99,3.0006253]
[1729469482683,29.691184,169.09,169.0,3.0006253]
[1729469483001,15.3433,169.07,168.99,3.0006253]
[1729469483202,16.23083783,169.07,169.0,3.0006253]
[1729469483501,16.23083783,169.07,168.98,3.0006253]
[1729469483695,16.23083783,169.07,168.99,3.0006253]
[1729469483928,16.23083783,169.07,169.0,3.0006253]
[1729469484104,5.9154,169.05,168.98,3.0006253]
[1729469484483,5.9154,169.05,168.96,3.0006253]
[1729469484683,5.9154,169.05,168.97,3.0006253]
[1729469484884,5.9154,169.05,168.98,3.0006253]
[1729469485182,5.9154,169.05,168.97,3.0006253]
[1729469485392,5.9154,169.05,168.98,3.0006253]
[1729469485595,5.9154,169.05,168.96,3.0006253]
[1729469485796,5.9154,169.05,168.97,3.0006253]
[1729469486106,5.9158,169.04,168.95,5.76117811]
[1729469486293,5.9154,169.05,168.96,3.00188826]
[1729469486497,5.9154,169.05,168.97,3.00188826]
[1729469486704,23.876884,169.06,168.96,3.00188826]
[1729469486994,5.9154,169.05,168.97,3.00188826]
[1729469487303,5.9154,169.05,168.95,3.00188826]
[1729469487514,5.9154,169.05,168.96,3.00188826]
[1729469487682,16.23083783,169.07,168.97,3.00188826]
[1729469487978,16.23083783,169.07,168.98,3.00188826]
[1729469488182,16.23083783,169.07,168.97,3.00188826]
[1729469488382,16.23083783,169.07,168.98,8.76306637]
[1729469488604,16.23083783,169.07,168.99,8.76306637]
[1729469488810,16.23083783,169.07,169.0,3.00188826]
[1729469488994,16.23083783,169.07,169.01,8.76306637]
[1729469489189,16.23083783,169.07,169.02,3.00188826]
[1729469489385,16.23083783,169.07,169.03,3.00188826]
[1729469489585,16.23083783,169.07,169.02,3.00188826]
[1729469489801,16.23083783,169.07,169.01,5.76117811]
[1729469490110,16.23083783,169.07,169.02,2.99682303]
[1729469490311,16.23083783,169.07,169.03,2.99682303]
[1729469490515,16.23083783,169.07,169.01,5.76297191]
[1729469490691,0.88753783,169.07,169.02,2.99682303]
[1729469490889,0.88753783,169.07,169.01,5.76297191]
[1729469490890,0.88753783,169.07,169.03,2.99682303]
[1729469491213,0.88753783,169.07,169.04,4.86941166]
[1729469491399,0.88753783,169.07,169.05,1.87258863]
[1729469491605,0.88753783,169.07,169.06,1.87258863]
[1729469493720,0.88753783,169.07,169.03,2.99682303]
[1729469493721,0.88753783,169.07,168.97,4.9146]
[1729469494018,0.88753783,169.07,169.02,5.76025277]
[1729469494200,0.88753783,169.07,169.03,4.8676084]
[1729469494402,0.88753783,169.07,169.04,4.8676084]
[1729469494595,0.88753783,169.07,169.05,1.87200649]
[1729469494921,0.88753783,169.07,169.06,1.87200649]
[1729469498093,0.88744386,169.1,169.06,1.87200649]
[1729469498290,0.88744386,169.1,169.07,1.87200649]
[1729469498512,0.88744386,169.1,169.08,1.87200649]
[1729469498698,0.88744386,169.1,169.09,1.87200649]
[1729469498925,0.88744386,169.1,169.06,4.8676084]
[1729469499105,0.88744386,169.1,169.07,1.87200649]
[1729469499308,0.88744386,169.1,169.08,1.87200649]
[1729469499612,0.88744386,169.1,169.09,1.87200649]
[1729469499993,0.88744386,169.1,169.06,4.8676084]
[1729469500200,0.88744386,169.1,169.07,1.87200649]
[1729469500394,0.88744386,169.1,169.06,2.99560191]
[1729469500395,0.88744386,169.1,169.08,1.87200649]
[1729469500597,0.88744386,169.1,169.09,1.87200649]
[1729469501100,0.88744386,169.1,169.05,5.76025277]
[1729469501306,0.88744386,169.1,169.06,2.99513651]
[1729469501510,0.88744386,169.1,169.06,4.86685217]
[1729469501715,0.88744386,169.1,169.07,1.8716853]
[1729469501916,0.88744386,169.1,169.08,1.8716853]
[1729469502093,0.88744386,169.1,169.09,1.8716853]
[1729469502723,0.88744386,169.1,169.05,4.86677322]
[1729469502899,0.88744386,169.1,169.06,1.8716853]
[1729469503208,0.88744386,169.1,169.07,1.8716853]
[1729469503412,0.88744386,169.1,169.08,1.7943153]
[1729469503612,0.88744386,169.1,169.05,2.99508792]
[1729469504111,0.88744386,169.1,169.04,5.77013329]
[1729469505419,0.88744386,169.1,169.04,8.76522121]
[1729469505601,0.88744386,169.1,169.04,5.77013329]
[1729469506901,0.88744386,169.1,169.04,8.76522121]
[1729469507219,0.88744386,169.1,169.04,5.77013329]
[1729469507915,0.88744386,169.1,169.04,8.76522121]
[1729469508120,0.88744386,169.1,169.04,5.77013329]
[1729469508308,0.88744386,169.1,169.05,2.99508792]
[1729469508515,1.63744386,169.1,169.05,2.99508792]
[1729469510108,1.63744386,169.1,169.06,2.99508792]
[1729469510305,1.63744386,169.1,169.05,8.76522121]
[1729469510517,1.63744386,169.1,169.06,2.99508792]
[1729469510903,1.63744386,169.1,169.07,2.99508792]
[1729469511108,1.63744386,169.1,169.08,2.99508792]
[1729469511304,1.63744386,169.1,169.06,8.76522121]
[1729469511504,1.63744386,169.1,169.07,2.99508792]
[1729469511707,1.63744386,169.1,169.08,2.99508792]
[1729469511910,1.63744386,169.1,169.09,2.99508792]
[1729469512299,0.75,169.1,169.09,2.99508792]
[1729469512704,0.75,169.1,169.09,3.00222688]
[1729469513724,0.75,169.1,169.09,8.58718645]
[1729469513964,0.75,169.1,169.09,15.67218224]
[1729469514107,0.75,169.1,169.09,8.58718645]
[1729469514420,0.75,169.1,169.09,28.68718645]
[1729469514599,16.4415,169.27,169.16,0.1]
[1729469514799,16.4415,169.32,169.2,0.1]
[1729469515018,16.4415,169.32,169.22,20.0]
[1729469515221,16.4415,169.32,169.23,8.88690867]
[1729469515417,16.4415,169.32,169.23,3.00222688]
[1729469515624,5.9066,169.31,169.23,4.87451292]
[1729469516009,16.4415,169.32,169.23,4.87451292]
[1729469516721,16.4415,169.32,169.23,7.99723131]
[1729469516906,6.54267365,169.26,169.23,1.87228604]
[1729469517310,6.54267365,169.26,169.15,5.76204689]
[1729469517520,6.54267365,169.26,169.23,1.87039401]
[1729469517700,6.54267365,169.26,169.19,2.99302156]
[1729469517905,6.54267365,169.26,169.17,3.11874937]
[1729469517906,6.54267365,169.26,169.2,4.86341557]
[1729469518202,6.54267365,169.26,169.21,1.87039401]
[1729469518203,16.08324394,169.23,169.21,1.87039401]
[1729469518396,16.08324394,169.23,169.22,1.87039401]
[1729469518608,16.08324394,169.23,169.17,4.86341557]
[1729469518823,16.08324394,169.23,169.18,1.87039401]
[1729469519019,16.08324394,169.23,169.19,1.87039401]
[1729469519222,16.08324394,169.23,169.2,1.87039401]
[1729469519432,16.08324394,169.23,169.21,1.87039401]
[1729469519610,0.88654394,169.23,169.22,1.87039401]
[1729469519813,0.88654394,169.23,169.17,4.86341557]
[1729469520012,0.88654394,169.23,169.18,4.86341557]
[1729469520213,0.88654394,169.23,169.19,1.87039401]
[1729469520416,0.88654394,169.23,169.2,1.87039401]
[1729469520727,0.88654394,169.23,169.21,1.86775166]
[1729469520929,0.88654394,169.23,169.22,1.86775166]
[1729469521227,0.88654394,169.23,169.18,2.98879322]
[1729469521228,0.88654394,169.23,169.19,1.86775166]
[1729469521454,0.88654394,169.23,169.2,1.86775166]
[1729469521729,0.88654394,169.23,169.14,5.88468179]
[1729469521910,0.88654394,169.23,169.15,7.96747768]
[1729469522111,0.88654394,169.23,169.16,4.85446692]
[1729469522306,0.88654394,169.23,169.17,1.86695252]
[1729469522504,5.9096,169.22,169.18,1.86695252]
[1729469522703,5.9096,169.22,169.11,3.11301076]
[1729469523015,5.9096,169.22,169.12,4.85426934]
[1729469523209,5.9096,169.22,169.13,1.86675494]
[1729469523427,5.91,169.21,169.14,1.86675494]
[1729469523629,12.3105,169.19,169.15,1.86696061]
[1729469523802,6.4,169.19,169.16,1.86696061]
[1729469524007,6.4,169.19,169.11,2.98752747]
[1729469524217,6.4,169.19,169.12,1.86755726]
[1729469524417,5.9112,169.17,169.13,1.86755726]
[1729469524615,23.776884,169.18,169.14,1.86755726]
[1729469524816,12.3108,169.19,169.08,6.10055212]
[1729469525022,12.3108,169.19,169.01,5.98468179]
[1729469525023,12.3108,169.19,169.09,7.96813724]
[1729469525323,0.88701862,169.18,169.1,4.85511259]
[1729469525515,0.88701862,169.18,169.11,1.86758512]
[1729469525708,5.9115,169.17,169.12,1.86758512]
[1729469525916,5.9115,169.17,169.13,1.86758512]
[1729469526213,5.9115,169.17,169.14,1.86758512]
[1729469526415,0.88701862,169.18,169.06,3.11302465]
[1729469526615,5.9115,169.17,169.07,7.96797888]
[1729469526816,0.88701862,169.18,169.08,4.85495423]
[1729469527030,0.88701862,169.18,169.09,7.96797888]
[1729469527323,0.88701862,169.18,169.1,7.96602968]
[1729469527523,0.88701862,169.18,169.13,3.11244532]
[1729469527834,0.1,169.22,169.14,1.86661303]
[1729469528009,0.1,169.22,169.15,1.86661303]
[1729469528210,5.9098,169.21,169.16,1.86661303]